bitfinex-derivatives/quotes_BNBF0:USTF0_20250302
["timestamp","ask_amount","ask_price","bid_price","bid_amount"]
[1740874605663,1.17717201,607.87,607.13,0.32941874]
[1740874606264,1.71876608,607.86,607.13,0.32941874]
[1740874606559,2.89593809,607.86,607.13,0.32941874]
[1740874607259,1.17717201,607.85,607.13,0.32941874]
[1740874607656,1.17717201,607.84,607.13,0.32941874]
[1740874608263,1.17717201,607.83,607.13,0.32941874]
[1740874608660,1.17717201,607.82,607.13,0.32941874]
[1740874609364,1.71885097,607.81,607.13,0.32941874]
[1740874609666,2.89602298,607.81,607.13,0.32941874]
[1740874610265,1.71885097,607.81,607.13,0.32941874]
[1740874612166,1.88669828,607.9,607.13,0.32941874]
[1740874612366,1.71880145,607.8,607.13,0.32941874]
[1740874612766,3.06606723,607.89,607.13,0.32941874]
[1740874612961,1.71880852,607.79,607.13,0.32941874]
[1740874613266,1.88669828,607.88,607.13,0.32941874]
[1740874613467,1.7188156,607.78,607.13,0.32941874]
[1740874613662,1.1794965,607.87,607.13,0.32941874]
[1740874613861,1.1794965,607.87,607.14,0.371]
[1740874614167,1.71873778,607.85,607.15,0.32940788]
[1740874615063,1.668,607.91,607.15,0.32940788]
[1740874615262,1.71866705,607.85,607.15,0.32940788]
[1740874616768,1.17983525,607.84,607.15,0.32940788]
[1740874617468,1.17983525,607.83,607.15,0.32940788]
[1740874617962,3.06782544,607.82,607.15,0.32940788]
[1740874618163,4.78669764,607.82,607.15,0.32940788]
[1740874618463,1.17983525,607.81,607.15,0.32940788]
[1740874619267,1.17983525,607.8,607.15,0.32940788]
[1740874619864,1.17983525,607.8,607.15,0.38740788]
[1740874620068,1.17983525,607.79,607.15,0.38740788]
[1740874620868,1.17983525,607.78,607.15,0.38740788]
[1740874621363,1.71893587,607.77,607.15,0.38740788]
[1740874621570,1.17983525,607.76,607.15,0.38740788]
[1740874622465,3.06767253,607.75,607.15,0.38740788]
[1740874623170,3.06767253,607.74,607.15,0.38740788]
[1740874623567,1.17983525,607.73,607.15,0.38740788]
[1740874624371,1.17983525,607.72,607.15,0.38740788]
[1740874624567,1.17983525,607.71,607.15,0.38740788]
[1740874625370,1.17983525,607.7,607.15,0.38740788]
[1740874625872,1.17983525,607.69,607.15,1.64340788]
[1740874626671,1.71893587,607.77,607.15,1.64340788]
[1740874627069,3.0683509,607.76,607.15,1.64340788]
[1740874627268,4.78732923,607.76,607.15,1.64340788]
[1740874627770,1.18013496,607.75,607.15,1.64340788]
[1740874628072,3.0683509,607.75,607.15,1.64340788]
[1740874628267,1.18013496,607.74,607.15,1.64340788]
[1740874628872,1.18013496,607.73,607.15,1.64340788]
[1740874629475,1.18013496,607.72,607.15,1.64340788]
[1740874629774,1.18013496,607.72,607.15,2.32340788]
[1740874632175,1.71897833,607.76,607.15,2.32340788]
[1740874632577,1.17978117,607.75,607.15,2.32340788]
[1740874633080,3.06765608,607.74,607.15,2.32340788]
[1740874633374,4.78673348,607.74,607.15,2.32340788]
[1740874633674,1.17978117,607.73,607.15,2.32340788]
[1740874634474,1.7190774,607.74,607.15,2.32340788]
[1740874634475,1.17978117,607.72,607.15,2.32340788]
[1740874635674,1.17978117,607.71,607.15,2.32340788]
[1740874636277,2.89888687,607.7,607.15,2.32340788]
[1740874636674,1.17978117,607.69,607.15,2.32340788]
[1740874637476,1.17978117,607.68,607.15,2.32340788]
[1740874638682,1.17978117,607.67,607.15,2.32340788]
[1740874639477,1.17978117,607.66,607.15,2.32340788]
[1740874640282,1.17978117,607.65,607.15,2.32340788]
[1740874640678,1.17978117,607.64,607.15,2.32340788]
[1740874640883,1.17978117,607.64,607.15,1.994]
[1740874641581,1.17978117,607.63,607.15,1.994]
[1740874642382,1.17978117,607.62,607.15,1.994]
[1740874643383,1.7191057,607.7,607.15,1.994]
[1740874643384,1.17978117,607.61,607.15,1.994]
[1740874644177,1.17978117,607.6,607.15,1.994]
[1740874644781,1.7191057,607.7,607.15,1.994]
[1740874644980,5.72341155,607.89,607.15,1.994]
[1740874645187,1.44283954,607.88,607.15,1.994]
[1740874645387,1.71922602,607.69,607.15,1.994]
[1740874645690,6.43147155,607.87,607.15,1.994]
[1740874645878,4.7850977,607.87,607.15,1.994]
[1740874646482,3.06611937,607.86,607.15,1.994]
[1740874646987,3.06611937,607.85,607.15,1.994]
[1740874647185,3.06611937,607.85,607.15,2.366]
[1740874647781,1.17824446,607.84,607.15,2.366]
[1740874648181,1.71891465,607.83,607.15,2.366]
[1740874648690,2.89715911,607.83,607.15,2.366]
[1740874649187,3.06611937,607.82,607.15,2.366]
[1740874649889,1.17824446,607.81,607.15,2.366]
[1740874650683,1.17824446,607.8,607.15,2.366]
[1740874651287,1.7188722,607.79,607.15,2.366]
[1740874653690,1.17881331,607.78,607.15,2.366]
[1740874654190,1.71888635,607.77,607.15,2.366]
[1740874654691,1.17881331,607.76,607.15,2.366]
[1740874655088,1.17881331,607.75,607.15,2.366]
[1740874655986,1.71888635,607.77,607.15,2.366]
[1740874656391,1.17991781,607.76,607.15,2.366]
[1740874656888,1.17991781,607.75,607.15,2.366]
[1740874657393,1.71890757,607.74,607.15,2.366]
[1740874659095,1.18053685,607.73,607.15,2.366]
[1740874659994,1.88885897,607.89,607.15,2.366]
[1740874660196,1.71892172,607.72,607.15,2.366]
[1740874660496,1.88885897,607.88,607.15,2.366]
[1740874660794,1.7189288,607.71,607.15,2.366]
[1740874660991,1.88885897,607.88,607.15,2.366]
[1740874661188,3.06977488,607.87,607.15,2.366]
[1740874661591,1.801,607.86,607.15,2.366]
[1740874661895,1.18091591,607.85,607.15,2.366]
[1740874662297,2.89961832,607.85,607.15,2.366]
[1740874662599,1.18091591,607.84,607.15,2.366]
[1740874663190,1.18091591,607.83,607.15,2.366]
[1740874663389,2.89963247,607.83,607.15,2.366]
[1740874663594,1.18091591,607.82,607.15,2.366]
[1740874663990,1.18091591,607.82,607.16,0.32940246]
[1740874664192,1.801,607.86,607.16,0.32940246]
[1740874664595,1.18186637,607.85,607.16,0.32940246]
[1740874664995,1.801,607.86,607.16,0.32940246]
[1740874666296,1.18167885,607.85,607.16,0.32940246]
[1740874666697,3.51970241,607.86,607.16,0.32940246]
[1740874667403,3.51970241,607.86,607.16,2.78640246]
[1740874669004,1.801,607.86,607.16,2.78640246]
[1740874669398,3.51961046,607.86,607.16,2.78640246]
[1740874672106,1.801,607.86,607.16,2.78640246]
[1740874672405,3.51961046,607.86,607.16,2.78640246]
[1740874673909,1.18074957,607.85,607.16,2.78640246]
[1740874674303,1.18074957,607.84,607.16,2.78640246]
[1740874675006,3.51961046,607.86,607.16,2.78640246]
[1740874675007,1.18074957,607.83,607.16,2.78640246]
[1740874675609,3.51961046,607.86,607.16,2.78640246]
[1740874675809,1.18099315,607.82,607.16,2.78640246]
[1740874676607,1.18099315,607.81,607.16,2.78640246]
[1740874677510,3.51961046,607.86,607.16,2.78640246]
[1740874678112,1.18100091,607.85,607.16,2.78640246]
[1740874678414,2.89976699,607.85,607.16,2.78640246]
[1740874679011,1.18100091,607.84,607.16,2.78640246]
[1740874679717,1.18100091,607.83,607.16,2.78640246]
[1740874680417,1.18100091,607.82,607.16,2.78640246]
[1740874680612,1.18100091,607.81,607.16,2.78640246]
[1740874681220,1.801,607.86,607.16,2.78640246]
[1740874681221,1.71880145,607.8,607.16,2.78640246]
[1740874682318,1.801,607.86,607.16,2.78640246]
[1740874682516,1.71868119,607.84,607.16,2.78640246]
[1740874684023,1.801,607.86,607.16,2.78640246]
[1740874684418,1.71863875,607.85,607.16,2.78640246]
[1740874687024,1.801,607.86,607.16,2.78640246]
[1740874687427,1.71863875,607.85,607.16,2.78640246]
[1740874692932,1.801,607.86,607.16,2.78640246]
[1740874701731,1.801,607.86,607.24,1.22935591]
[1740874701929,1.801,607.86,607.25,0.32935364]
[1740874703435,1.801,607.86,607.31,1.22935591]
[1740874703637,1.801,607.86,607.32,0.32931568]
[1740874705336,1.801,607.86,607.33,2.451]
[1740874711937,1.801,607.86,607.33,2.78031025]
[1740874712137,1.801,607.86,607.34,0.32930483]
[1740874715539,1.71826396,608.02,607.34,0.32930483]
[1740874716737,1.831,608.01,607.34,0.32930483]
[1740874721850,1.831,608.01,607.36,1.22935591]
[1740874722049,1.831,608.01,607.37,0.32928857]
[1740874722549,1.831,608.01,607.38,1.797]
[1740874722945,1.831,608.01,607.39,0.32927772]
[1740874725553,1.831,608.01,607.4,0.371]
[1740874725746,1.831,608.01,607.41,0.32926688]
[1740874730459,1.831,608.01,607.41,1.00926688]
[1740874733365,1.831,608.01,607.48,1.22935591]
[1740874734162,1.831,608.01,607.49,0.32922352]
[1740874736469,1.831,608.01,607.5,0.058]
[1740874737063,1.831,608.01,607.51,0.32921268]
[1740874739765,1.831,608.01,607.52,1.134]
[1740874739966,1.831,608.01,607.52,1.46320726]
[1740874740767,1.831,608.01,607.53,0.32920185]
[1740874747576,1.831,608.01,607.55,1.22935591]
[1740874749473,1.831,608.01,607.53,1.55855776]
[1740874752078,1.831,608.01,607.53,0.32920185]
[1740874753681,1.831,608.01,607.53,0.70020185]
[1740874756782,1.831,608.01,607.53,1.38020185]
[1740874765888,1.71773387,608.22,607.53,1.38020185]
[1740874766888,1.18210158,608.21,607.53,1.38020185]
[1740874767084,2.80310158,608.21,607.53,1.38020185]
[1740874767988,1.621,608.21,607.53,1.38020185]
[1740874768684,1.621,608.21,607.53,1.43820185]
[1740874769089,1.18250722,608.2,607.53,1.43820185]
[1740874769490,1.621,608.21,607.53,1.43820185]
[1740874770890,1.18291691,608.2,607.53,1.43820185]
[1740874771091,1.18291691,608.2,607.53,2.91920185]
[1740874771391,1.18291691,608.19,607.53,2.91920185]
[1740874772087,1.621,608.21,607.53,2.91920185]
[1740874772591,1.18314121,608.2,607.53,2.91920185]
[1740874772987,1.18314121,608.2,607.53,4.14855776]
[1740874773585,1.18314121,608.19,607.53,4.14855776]
[1740874774089,1.621,608.21,607.53,4.14855776]
[1740874774889,1.18370649,608.2,607.53,4.14855776]
[1740874775192,1.18370649,608.19,607.53,4.14855776]
[1740874775393,1.18370649,608.19,607.66,1.22935591]
[1740874775693,1.18370649,608.18,607.66,1.22935591]
[1740874776387,1.621,608.21,607.66,1.22935591]
[1740874777195,1.18785561,608.2,607.66,1.22935591]
[1740874777691,1.18785561,608.2,607.53,3.34342894]
[1740874777692,1.18785561,608.2,607.61,1.22935591]
[1740874778096,1.18785561,608.19,607.61,1.22935591]
[1740874778993,1.18785561,608.18,607.62,1.051]
[1740874779793,1.18785561,608.17,607.62,1.051]
[1740874780196,1.18785561,608.17,607.64,1.22935591]
[1740874780396,1.18785561,608.16,607.64,1.22935591]
[1740874781095,1.18785561,608.15,607.64,1.22935591]
[1740874781798,1.18785561,608.14,607.64,1.22935591]
[1740874782497,1.18785561,608.13,607.62,1.051]
[1740874782898,1.18785561,608.12,607.62,1.051]
[1740874783594,1.18785561,608.11,607.62,1.051]
[1740874784499,1.18785561,608.1,607.62,1.051]
[1740874784998,1.18785561,608.09,607.62,1.051]
[1740874785400,1.71764909,608.18,607.62,1.051]
[1740874785899,3.09024833,608.17,607.62,1.051]
[1740874786500,1.18855705,608.16,607.62,1.051]
[1740874787501,1.18855705,608.15,607.62,1.051]
[1740874788298,1.18855705,608.14,607.62,1.051]
[1740874789105,1.18855705,608.13,607.62,1.051]
[1740874789605,1.71761377,608.18,607.62,1.051]
[1740874790304,1.19202223,608.17,607.62,1.051]
[1740874790804,1.19202223,608.17,607.68,1.22935591]
[1740874791004,1.19202223,608.16,607.68,1.22935591]
[1740874791208,2.76302223,608.16,607.68,1.22935591]
[1740874791501,1.19202223,608.15,607.68,1.22935591]
[1740874792305,1.19202223,608.14,607.68,1.22935591]
[1740874792505,1.19202223,608.14,607.67,1.22935591]
[1740874793110,1.571,608.16,607.67,1.22935591]
[1740874793809,1.19204321,608.15,607.67,1.22935591]
[1740874794209,3.09942527,608.14,607.67,1.22935591]
[1740874794916,1.19204321,608.13,607.68,1.22935591]
[1740874795712,1.19204321,608.12,607.68,1.22935591]
[1740874796305,1.19204321,608.12,607.68,2.91035591]
[1740874796508,1.19204321,608.11,607.68,2.91035591]
[1740874796912,1.19204321,608.11,607.68,1.681]
[1740874797310,1.571,608.16,607.68,1.681]
[1740874797311,1.19204321,608.1,607.68,1.681]
[1740874797811,3.0998412,608.09,607.68,1.681]
[1740874798514,1.19204321,608.08,607.68,1.681]
[1740874798906,1.19204321,608.08,607.68,1.739]
[1740874799513,3.09924597,608.07,607.68,1.739]
[1740874800007,1.19204321,608.06,607.68,1.739]
[1740874800414,1.19204321,608.05,607.68,1.739]
[1740874801216,1.19204321,608.04,607.68,1.739]
[1740874801617,1.19204321,608.03,607.68,1.739]
[1740874802224,1.571,608.16,607.68,1.739]
[1740874802425,1.71783987,608.06,607.68,1.739]
[1740874802626,1.571,608.16,607.68,1.739]
[1740874802926,1.71781867,608.06,607.68,1.739]
[1740874803121,3.09841769,608.15,607.68,1.739]
[1740874803623,1.71781867,608.1,607.68,1.739]
[1740874804027,3.09841769,608.14,607.68,1.739]
[1740874804527,1.19169911,608.13,607.68,1.739]
[1740874804923,1.19169911,608.12,607.68,1.739]
[1740874805224,1.19169911,608.12,607.68,2.11]
[1740874805724,1.19169911,608.11,607.68,2.11]
[1740874806124,1.19169911,608.11,607.68,2.79]
[1740874806426,1.19169911,608.1,607.68,2.79]
[1740874806829,1.19169911,608.09,607.68,2.79]
[1740874807526,1.19169911,608.08,607.68,2.79]
[1740874808326,1.19169911,608.07,607.68,2.79]
[1740874808924,1.19169911,608.06,607.68,2.79]
[1740874809422,1.71771268,608.12,607.68,2.79]
[1740874810228,3.10761371,608.11,607.68,2.79]
[1740874810728,4.51361371,608.1,607.68,2.79]
[1740874811227,3.10761371,608.09,607.68,2.79]
[1740874811828,3.10761371,608.08,607.68,2.79]
[1740874812827,3.10761371,608.07,607.68,2.79]
[1740874813429,1.71800948,608.06,607.68,2.79]
[1740874813728,4.82562319,608.06,607.68,2.79]
[1740874814428,3.10761371,608.05,607.68,2.79]
[1740874814927,3.10761371,608.04,607.68,2.79]
[1740874816324,4.82547478,608.04,607.68,2.79]
[1740874816528,1.19523604,608.03,607.68,2.79]
[1740874816828,1.19523604,608.02,607.68,2.79]
[1740874817828,1.19523604,608.01,607.68,2.79]
[1740874818730,1.19523604,608.0,607.68,2.79]
[1740874819432,1.19523604,607.99,607.68,2.79]
[1740874819932,1.71788933,608.04,607.68,2.79]
[1740874820729,1.19702896,608.03,607.68,2.79]
[1740874821643,1.19702896,608.02,607.68,2.79]
[1740874822336,1.19702896,608.01,607.68,2.79]
[1740874822832,1.7178752,608.05,607.68,2.79]
[1740874823437,1.19686976,608.04,607.68,2.79]
[1740874823839,1.588,608.03,607.68,2.79]
[1740874831641,1.19686174,608.02,607.68,2.79]
[1740874832548,1.588,608.03,607.68,2.79]
[1740874834142,1.19694031,608.02,607.68,2.79]
[1740874834550,2.91484378,608.02,607.68,2.79]
[1740874834751,1.19694031,608.01,607.68,2.79]
[1740874835653,1.19694031,608.0,607.68,2.79]
[1740874836246,1.19694031,607.99,607.68,2.79]
[1740874837054,3.11170505,607.98,607.68,2.79]
[1740874837554,3.11170505,607.97,607.68,2.79]
[1740874838253,3.11170505,607.96,607.68,2.79]
[1740874839546,3.11170505,607.95,607.68,2.79]
[1740874839950,3.11170505,607.94,607.68,2.79]
[1740874840358,4.82984883,607.93,607.68,2.79]
[1740874840754,4.82984883,607.93,607.2,1.22935591]
[1740874841155,3.11170505,607.92,607.2,1.22935591]
[1740874841954,3.11170505,607.91,607.2,1.22935591]
[1740874842855,3.11170505,607.91,607.05,1.22935591]
[1740874843051,3.11170505,607.91,607.06,0.32945672]
[1740874843250,3.11170505,607.9,607.06,0.32945672]
[1740874843456,4.83041454,607.9,607.06,0.32945672]
[1740874843954,3.11170505,607.89,607.06,2.97245672]
[1740874845052,1.19694031,607.88,607.06,2.97245672]
[1740874845253,1.19694031,607.88,607.06,4.20181263]
[1740874845754,1.19694031,607.87,607.06,4.20181263]
[1740874846259,1.19694031,607.86,607.06,4.20181263]
[1740874846856,1.19694031,607.85,607.06,4.20181263]
[1740874847254,1.71870949,607.9,607.06,4.20181263]
[1740874847561,1.19389806,607.84,607.06,4.20181263]
[1740874848360,1.19389806,607.83,607.06,4.20181263]
[1740874848763,1.19389806,607.83,607.06,2.97245672]
[1740874848961,1.19389806,607.82,607.06,2.97245672]
[1740874849562,1.71882267,607.81,607.06,2.97245672]
[1740874851862,1.19308248,607.8,607.06,2.97245672]
[1740874852265,1.19308248,607.79,607.06,2.97245672]
[1740874852466,2.91218818,607.79,607.06,2.97245672]
[1740874852666,1.19308248,607.78,607.06,2.97245672]
[1740874853562,1.19308248,607.77,607.06,2.97245672]
[1740874854268,1.19308248,607.76,607.06,2.97245672]
[1740874854868,1.19308248,607.75,607.06,2.97245672]
[1740874855266,1.71914109,607.74,607.06,2.97245672]
[1740874855769,1.19308248,607.73,607.06,2.97245672]
[1740874856665,1.19308248,607.72,607.06,2.97245672]
[1740874857570,1.71914109,607.74,607.06,2.97245672]
[1740874858165,1.19201328,607.73,607.06,2.97245672]
[1740874858965,1.71914109,607.74,607.06,2.97245672]
[1740874860271,1.19141142,607.73,607.06,2.97245672]
[1740874860975,1.71914109,607.74,607.06,2.97245672]
[1740874861177,1.91023689,607.89,607.06,2.97245672]
[1740874861375,1.71915524,607.72,607.06,2.97245672]
[1740874861568,1.91023689,607.89,607.06,2.97245672]
[1740874861569,3.10116627,607.88,607.06,2.97245672]
[1740874861970,1.71916232,607.71,607.06,2.97245672]
[1740874862175,3.10116627,607.88,607.06,2.97245672]
[1740874862476,1.71904909,607.87,607.06,2.97245672]
[1740874862676,3.62928598,607.87,607.06,2.97245672]
[1740874863277,3.10102749,607.86,607.06,2.97245672]
[1740874863777,3.10102749,607.85,607.06,2.97245672]
[1740874864373,4.82009781,607.84,607.06,2.97245672]
[1740874866277,3.10102749,607.83,607.06,2.97245672]
[1740874867178,1.1907906,607.82,607.06,2.97245672]
[1740874867378,2.90987507,607.82,607.06,2.97245672]
[1740874867773,1.1907906,607.81,607.06,2.97245672]
[1740874868475,3.10102749,607.8,607.06,2.97245672]
[1740874868876,3.10102749,607.79,607.06,2.97245672]
[1740874869874,3.10102749,607.78,607.06,2.97245672]
[1740874870578,3.10102749,607.77,607.06,2.97245672]
[1740874870978,3.10102749,607.76,607.06,2.97245672]
[1740874871576,3.10102749,607.75,607.06,2.97245672]
[1740874872379,3.10102749,607.74,607.06,2.97245672]
[1740874873082,3.10102749,607.73,607.06,2.97245672]
[1740874873582,1.71925433,607.72,607.06,2.97245672]
[1740874874082,1.1907906,607.71,607.06,2.97245672]
[1740874874983,1.1907906,607.7,607.06,2.97245672]
[1740874875577,1.1907906,607.69,607.06,2.97245672]
[1740874876586,1.1907906,607.68,607.06,2.97245672]
[1740874877287,1.1907906,607.67,607.06,2.97245672]
[1740874877886,1.1907906,607.66,607.06,2.97245672]
[1740874878889,1.1907906,607.65,607.06,2.97245672]
[1740874879390,1.882,607.64,607.06,2.97245672]
[1740874879592,4.79210156,607.64,607.06,2.97245672]
[1740874880187,1.1907906,607.63,607.06,2.97245672]
[1740874881390,1.1907906,607.62,607.06,2.97245672]
[1740874881993,1.1907906,607.61,607.06,2.97245672]
[1740874882493,1.71938175,607.6,607.06,2.97245672]
[1740874882792,2.91017235,607.6,607.06,2.97245672]
[1740874883489,1.1907906,607.59,607.06,2.97245672]
[1740874884088,1.1907906,607.59,607.06,2.643]
[1740874884394,3.09477128,607.58,607.06,2.643]
[1740874885193,3.09477128,607.57,607.06,2.643]
[1740874885489,1.64693735,607.56,607.06,2.643]
[1740874885692,4.74170863,607.56,607.06,2.643]
[1740874885894,1.64693735,607.55,607.06,2.643]
[1740874886093,3.09477128,607.56,607.06,2.643]
[1740874886293,3.09477128,607.54,607.06,2.643]
[1740874887495,3.09477128,607.53,607.06,2.643]
[1740874888288,3.09477128,607.52,607.06,2.643]
[1740874888992,3.08486453,607.51,607.06,2.643]
[1740874889189,8.81505252,607.51,607.06,2.643]
[1740874889392,3.08486453,607.5,607.06,2.643]
[1740874889994,3.09477128,607.49,607.06,2.643]
[1740874890194,3.08486453,607.48,607.06,2.643]
[1740874890993,3.09477128,607.47,607.06,2.643]
[1740874891188,1.64713958,607.46,607.06,2.643]
[1740874891693,3.36711619,607.46,607.06,2.643]
[1740874891994,3.09477128,607.45,607.06,2.643]
[1740874892190,1.64713958,607.44,607.06,2.643]
[1740874892595,3.09477128,607.43,607.06,2.643]
[1740874893497,3.09477128,607.42,607.06,2.643]
[1740874893897,1.64728567,607.41,607.06,2.643]
[1740874894398,4.74205695,607.41,607.06,2.643]
[1740874894592,1.72001911,607.4,607.06,2.643]
[1740874894798,4.81479039,607.4,607.06,2.643]
[1740874895692,1.1907906,607.39,607.06,2.643]
[1740874896492,1.1907906,607.38,607.06,2.643]
[1740874896897,1.1907906,607.37,607.06,2.643]
[1740874897898,1.1907906,607.36,607.06,2.643]
[1740874898198,1.1907906,607.35,607.06,2.643]
[1740874898599,1.712,607.34,607.06,2.643]
[1740874899193,1.1907906,607.33,607.06,2.643]
[1740874899803,1.1907906,607.32,607.06,2.643]
[1740874900304,1.1907906,607.31,607.06,2.643]
[1740874900500,1.1907906,607.31,607.06,1.963]
[1740874900704,1.1907906,607.31,606.12,1.22935591]
[1740874900904,1.1907906,607.31,606.14,0.32995677]
[1740874901500,1.712,607.34,606.14,0.32995677]
[1740874902509,1.18848944,607.33,606.14,0.32995677]
[1740874902901,1.18848944,607.32,606.14,0.32995677]
[1740874903503,1.72063568,607.31,606.14,0.32995677]
[1740874903709,1.72063568,607.31,606.15,3.019]
[1740874903909,1.72063568,607.31,606.17,0.32994044]
[1740874904311,1.72063568,607.31,606.28,1.22935591]
[1740874904509,1.72063568,607.31,606.3,0.3298697]
[1740874906112,1.712,607.34,606.3,0.3298697]
[1740874906516,2.90948441,607.33,606.3,0.3298697]
[1740874907609,1.18900469,607.32,606.3,0.3298697]
[1740874908414,1.72047972,607.33,606.3,0.3298697]
[1740874909110,1.712,607.34,606.3,0.3298697]
[1740874909314,1.72047972,607.32,606.3,0.3298697]
[1740874911019,1.72047972,607.32,606.31,1.22935591]
[1740874911213,1.72047972,607.32,606.33,0.32985338]
[1740874912119,1.712,607.34,606.33,0.32985338]
[1740874912514,1.72037341,607.33,606.33,0.32985338]
[1740874913019,1.72037341,607.33,606.36,1.22935591]
[1740874913615,1.18997168,607.32,606.36,1.22935591]
[1740874914019,1.72037341,607.33,606.36,1.22935591]
[1740874914222,1.72037341,607.33,606.37,0.32983162]
[1740874914419,1.18987876,607.31,606.37,0.32983162]
[1740874915020,1.18987876,607.3,606.37,0.32983162]
[1740874915522,1.7206215,607.29,606.37,0.32983162]
[1740874915721,2.91050026,607.29,606.37,0.32983162]
[1740874916622,1.18987876,607.28,606.37,0.32983162]
[1740874916921,2.83755557,607.28,606.37,0.32983162]
[1740874917228,1.64767681,607.27,606.37,0.32983162]
[1740874917518,3.09362537,607.27,606.37,0.32983162]
[1740874917717,3.08609684,607.26,606.37,0.32983162]
[1740874917916,6.17972221,607.26,606.38,1.263]
[1740874918117,1.64767681,607.25,606.38,1.263]
[1740874919123,3.09362537,607.24,606.38,1.263]
[1740874919919,3.09362537,607.23,606.38,1.263]
[1740874920116,3.09362537,607.23,606.39,0.372]
[1740874921018,3.09362537,607.22,606.39,0.372]
[1740874921322,4.81439576,607.22,606.39,0.372]
[1740874921523,1.18987876,607.21,606.39,0.372]
[1740874921725,1.18987876,607.21,606.4,0.3298153]
[1740874922122,1.72077039,607.22,606.4,0.3298153]
[1740874922123,1.72077039,607.22,606.4,1.0108153]
[1740874924018,1.712,607.34,606.4,1.0108153]
[1740874924221,1.72042302,607.29,606.4,1.0108153]
[1740874924425,1.712,607.34,606.4,1.0108153]
[1740874924824,1.72035923,607.29,606.4,1.0108153]
[1740874927127,1.712,607.34,606.4,1.0108153]
[1740874927335,1.72035923,607.33,606.4,1.0108153]
[1740874929934,1.72035923,607.33,606.4,1.0688153]
[1740874930134,1.19173152,607.32,606.4,1.0688153]
[1740874930336,2.91207658,607.32,606.4,1.0688153]
[1740874930740,1.72034506,607.32,606.4,1.0688153]
[1740874933241,1.712,607.34,606.4,1.0688153]
[1740874933740,1.72036632,607.31,606.4,1.0688153]
[1740874936034,1.712,607.34,606.4,1.0688153]
[1740874936439,1.72038758,607.3,606.4,1.0688153]
[1740874938842,1.712,607.34,606.4,1.0688153]
[1740874939044,1.712,607.34,606.4,2.4238153]
[1740874940942,1.712,607.34,606.45,1.22935591]
[1740874941136,1.712,607.34,606.47,0.32977723]
[1740874943346,1.712,607.34,606.48,0.372]
[1740874943646,1.72009704,607.43,606.48,0.372]
[1740874943846,3.09336156,607.65,606.5,0.32976092]
[1740874944047,1.71994119,607.48,606.5,0.32976092]
[1740874944247,3.09336156,607.64,606.5,0.32976092]
[1740874944543,1.71989868,607.51,606.5,0.32976092]
[1740874944747,1.19638101,607.47,606.5,0.32976092]
[1740874945447,1.664,607.5,606.58,1.22935591]
[1740874945752,1.664,607.5,606.6,0.32970656]
[1740874946146,1.664,607.5,606.61,0.058]
[1740874946448,1.664,607.5,606.63,0.32969025]
[1740874947749,1.664,607.5,606.63,1.55904616]
[1740874949248,1.664,607.5,606.64,0.681]
[1740874949444,1.664,607.5,606.66,0.32967395]
[1740874957450,1.71988452,607.49,606.66,0.70167395]
[1740874960149,1.664,607.5,606.66,0.70167395]
[1740874960353,1.71979244,607.48,606.66,0.70167395]
[1740874962353,1.71979244,607.48,606.66,2.34067395]
[1740874963355,1.664,607.5,606.66,2.34067395]
[1740874963552,1.71975703,607.49,606.66,2.34067395]
[1740874965552,1.71975703,607.49,606.66,2.39867395]
[1740874966456,1.71975703,607.49,606.66,3.07967395]
[1740874966661,1.19274907,607.48,606.66,3.07967395]
[1740874967464,1.19274907,607.47,606.66,3.07967395]
[1740874967861,3.62808149,607.49,606.66,3.07967395]
[1740874967862,1.19274907,607.46,606.66,3.07967395]
[1740874968469,1.19274907,607.45,606.66,3.07967395]
[1740874969271,1.19274907,607.44,606.66,3.07967395]
[1740874969571,2.91273984,607.44,606.66,3.07967395]
[1740874969969,1.19274907,607.43,606.66,3.07967395]
[1740874970873,1.19274907,607.42,606.66,3.07967395]
[1740874971773,1.71999077,607.44,606.66,3.07967395]
[1740874972166,1.19282843,607.43,606.66,3.07967395]
[1740874972370,2.91276962,607.43,606.66,3.07967395]
[1740874972872,1.71994119,607.43,606.66,3.07967395]
[1740874975267,5.72419025,607.78,606.66,3.07967395]
[1740874975472,1.7198491,607.45,606.66,3.07967395]
[1740874975773,7.63333464,607.76,606.66,3.07967395]
[1740874975976,1.71983494,607.47,606.66,3.07967395]
[1740874976170,5.72438404,607.74,606.66,3.07967395]